bitfinex/quotes_SOLUSD_20241122
["timestamp","ask_amount","ask_price","bid_price","bid_amount"]
[1732266122685,2.5,259.23,259.19,20.0]
[1732266122986,2.5,259.23,259.21,20.0]
[1732266124392,100.3,259.22,259.21,20.0]
[1732266125496,102.8,259.22,259.17,20.0]
[1732266125676,2.5,259.2,259.18,23.776884]
[1732266125870,2.5,259.2,259.19,20.0]
[1732266126682,2.5,259.2,259.17,43.776884]
[1732266126991,2.5,259.2,259.17,41.12144978]
[1732266127286,5.0,259.2,259.17,41.12144978]
[1732266127592,100.3,259.19,259.17,41.12144978]
[1732266128187,2.5,259.18,259.17,41.12144978]
[1732266130777,2.5,259.22,259.17,41.12144978]
[1732266130778,2.5,259.21,259.17,41.12144978]
[1732266130980,2.5,259.22,259.19,20.0]
[1732266132591,2.5,259.24,259.21,20.0]
[1732266133384,100.3,259.23,259.21,20.0]
[1732266135300,100.3,259.23,259.22,23.776884]
[1732266135594,100.3,259.23,259.22,43.776884]
[1732266136379,2.5,259.26,259.23,20.0]
[1732266136574,100.3,259.25,259.24,43.776884]
[1732266137283,100.3,259.26,259.24,43.776884]
[1732266137491,100.3,259.26,259.25,43.776884]
[1732266142501,102.8,259.28,259.25,43.776884]
[1732266142700,100.3,259.28,259.27,43.776884]
[1732266143003,102.8,259.28,259.27,43.776884]
[1732266143683,100.3,259.28,259.27,43.776884]
[1732266143888,102.8,259.28,259.27,43.776884]
[1732266144396,100.3,259.28,259.27,43.776884]
[1732266144585,2.5,259.36,259.3,23.776884]
[1732266144787,51.7,259.38,259.35,20.0]
[1732266144985,51.7,259.39,259.38,23.776884]
[1732266145299,54.2,259.4,259.39,20.0]
[1732266145496,54.19999867,259.4,259.39,20.0]
[1732266146600,51.69999867,259.4,259.39,20.0]
[1732266146979,51.69999867,259.4,259.39,43.776884]
[1732266147675,51.69999867,259.45,259.41,20.0]
[1732266147882,51.69999867,259.45,259.44,23.776884]
[1732266148098,51.69999867,259.45,259.44,43.776884]
[1732266148889,2.5,259.5,259.46,23.776884]
[1732266149104,2.5,259.5,259.49,20.0]
[1732266149701,2.5,259.5,259.48,23.776884]
[1732266149899,2.5,259.49,259.48,43.776884]
[1732266150588,2.5,259.48,259.44,4.00861358]
[1732266150784,2.5,259.46,259.45,43.776884]
[1732266153408,2.49999735,259.46,259.45,43.776884]
[1732266154412,29.5,259.47,259.45,43.776884]
[1732266154608,29.5,259.47,259.46,20.0]
[1732266154814,29.5,259.47,259.46,48.9807157]
[1732266155112,29.5,259.51,259.5,20.0]
[1732266155290,29.5,259.51,259.5,43.776884]
[1732266155486,29.5,259.55,259.51,23.776884]
[1732266155699,29.5,259.55,259.54,20.0]
[1732266155911,29.5,259.55,259.54,43.776884]
[1732266156110,32.0,259.55,259.54,20.0]
[1732266156412,32.0,259.55,259.53,20.0]
[1732266156714,2.49999735,259.54,259.53,20.0]
[1732266157015,29.5,259.59,259.55,20.0]
[1732266157215,29.5,259.59,259.56,23.776884]
[1732266157398,29.5,259.59,259.58,23.776884]
[1732266157710,29.5,259.59,259.58,43.776884]
[1732266159511,29.5,259.59,259.58,47.78549758]
[1732266160515,31.99999735,259.6,259.59,20.0]
[1732266162414,2.49999735,259.52,259.51,4.00861358]
[1732266164315,2.49999735,259.54,259.51,4.00861358]
[1732266164499,2.49999735,259.52,259.51,27.78549758]
[1732266164819,2.49999735,259.52,259.51,47.78549758]
[1732266165317,2.49999735,259.54,259.51,47.78549758]
[1732266165523,29.5,259.55,259.52,43.776884]
[1732266165817,29.5,259.55,259.52,53.38799595]
[1732266166541,2.49999735,259.56,259.52,53.38799595]
[1732266166919,31.99999735,259.58,259.52,53.38799595]
[1732266167127,29.5,259.57,259.52,53.38799595]
[1732266167620,2.49999735,259.6,259.54,23.776884]
[1732266167815,2.49999735,259.6,259.57,20.0]
[1732266168025,2.49999735,259.6,259.59,20.0]
[1732266168504,2.49999735,259.6,259.36,5.602498]
[1732266168505,2.49999735,259.48,259.28,3.6399]
[1732266168705,2.49999735,259.46,259.29,0.57807787]
[1732266168907,31.99999735,259.49,259.3,3.64865803]
[1732266169120,31.99999735,259.49,259.31,5.67500298]
[1732266169402,31.99999735,259.49,259.32,7.49365803]
[1732266169625,31.99999735,259.49,259.34,3.845]
[1732266169808,2.49999735,259.49,259.36,3.845]
[1732266170123,31.99999735,259.51,259.38,3.845]
[1732266170430,31.99999735,259.51,259.41,23.776884]
[1732266170608,29.5,259.5,259.44,20.0]
[1732266171110,2.49999735,259.53,259.48,20.0]
[1732266171434,31.99999735,259.53,259.51,23.776884]
[1732266171611,29.5,259.53,259.52,43.776884]
[1732266171806,31.99999735,259.55,259.52,43.776884]
[1732266172007,31.99999735,259.55,259.54,20.0]
[1732266172909,29.5,259.55,259.54,43.776884]
[1732266173110,29.49999659,259.55,259.54,43.776884]
[1732266173627,29.49999659,259.58,259.56,20.0]
[1732266174340,8.54679735,259.59,259.57,23.776884]
[1732266174632,2.49999735,259.59,259.58,43.776884]
[1732266175012,15.8667,259.6,259.59,43.776884]
[1732266178941,31.99999394,259.61,259.6,20.0]
[1732266181031,31.99999394,259.61,259.49,11.14598908]
[1732266181032,2.49999735,259.58,259.51,23.776884]
[1732266181230,2.49999735,259.58,259.53,23.776884]
[1732266181618,2.49999735,259.58,259.56,20.0]
[1732266182120,2.5,259.57,259.53,23.776884]
[1732266182846,2.49999735,259.54,259.49,11.14598908]
[1732266183343,2.49999735,259.56,259.49,11.14598908]
[1732266183526,2.49999735,259.54,259.5,20.0]
[1732266184739,31.99999394,259.56,259.53,3.845]
[1732266184938,31.99999394,259.56,259.54,23.776884]
[1732266185145,29.49999659,259.56,259.55,43.776884]
[1732266185947,28.08472887,259.56,259.55,43.776884]
[1732266187540,4.99999735,259.62,259.56,23.776884]
[1732266187745,4.99999735,259.62,259.57,20.0]
[1732266187933,4.99999735,259.62,259.55,43.776884]
[1732266187934,4.99999735,259.62,259.58,23.776884]
[1732266188142,4.99999735,259.62,259.6,23.776884]
[1732266188619,4.99999735,259.62,259.61,43.776884]
[1732266189935,2.49999735,259.56,259.5,20.0]
[1732266191548,2.49999735,259.43,259.27,3.845]
[1732266191846,2.49999735,259.43,259.29,3.845]
[1732266192056,2.49999735,259.43,259.31,3.845]
[1732266192349,29.28472622,259.45,259.32,12.59060084]
[1732266192725,2.49999735,259.43,259.33,20.0]
[1732266192933,2.49999735,259.43,259.34,32.52248484]
[1732266193124,2.49999735,259.43,259.36,23.776884]
[1732266193325,2.49999735,259.43,259.37,20.0]
[1732266193539,2.49999735,259.43,259.39,20.0]
[1732266193725,2.49999735,259.43,259.4,23.776884]
[1732266194142,2.49999735,259.43,259.42,43.776884]
[1732266194345,2.49999735,259.43,259.42,23.776884]
[1732266194540,2.49999735,259.4,259.34,3.64865803]
[1732266194727,4.99999735,259.4,259.34,3.64865803]
[1732266194926,4.99999735,259.4,259.28,3.845]
[1732266195126,2.49999735,259.38,259.28,3.64865803]
[1732266195426,2.49999735,259.38,259.28,8.74560084]
[1732266195855,2.49999735,259.38,259.29,5.09694281]
[1732266196740,2.49999735,259.35,259.3,20.0]
[1732266197056,26.78472887,259.4,259.31,25.09694281]
[1732266197057,2.49999735,259.39,259.31,25.09694281]
[1732266197242,2.49999735,259.37,259.31,28.74560084]
[1732266197752,26.78472887,259.4,259.31,28.74560084]
[1732266197962,10.5244046,259.4,259.31,28.74560084]
[1732266198249,8.71832428,259.4,259.36,23.776884]
[1732266198431,8.71832428,259.4,259.39,20.0]
[1732266198635,8.71832428,259.4,259.39,43.776884]
[1732266204441,11.21832163,259.4,259.32,20.0]
[1732266204745,8.71832428,259.4,259.36,20.0]
[1732266205254,8.71832428,259.4,259.34,20.0]
[1732266205442,8.71832428,259.4,259.35,23.64865803]
[1732266205646,8.71832428,259.4,259.35,28.74560084]
[1732266205847,1e-08,259.4,259.38,23.776884]
[1732266206061,1e-08,259.4,259.39,20.0]
[1732266206251,1e-08,259.4,259.39,43.776884]
[1732266206756,1e-08,259.4,259.36,20.0]
[1732266207981,1e-08,259.4,259.37,23.776884]
[1732266208183,1e-08,259.4,259.39,23.776884]
[1732266208381,1e-08,259.4,259.39,43.776884]
[1732266225591,2.49999736,259.4,259.39,43.776884]
[1732266225774,2.49999735,259.37,259.33,20.0]
[1732266225977,2.49999735,259.37,259.29,20.0]
[1732266226187,2.49999735,259.37,259.3,3.845]
[1732266227086,2.49999735,259.37,259.33,23.776884]
[1732266227291,2.49999735,259.37,259.34,20.0]
[1732266227495,2.49999735,259.37,259.36,20.0]
[1732266227876,2.49999735,259.37,259.36,43.776884]
[1732266228689,2.49999735,259.39,259.38,20.0]
[1732266229090,2.49999735,259.39,259.37,23.776884]
[1732266229473,2.49999735,259.39,259.38,20.0]
[1732266231485,2.49999735,259.39,259.38,43.776884]
[1732266233092,2.50000001,259.4,259.35,20.0]
[1732266233093,2.49999735,259.36,259.35,20.0]
[1732266233391,2.49999735,259.36,259.35,43.776884]
[1732266235689,2.49999735,259.25,259.24,0.57833425]
[1732266235896,2.5,259.33,259.14,7.2550075]
[1732266235897,4.99999735,259.18,259.14,7.2550075]
[1732266236117,2.49999735,259.16,259.04,0.57873535]
[1732266236398,4.99999735,259.16,259.04,11.85385362]
[1732266236604,4.99999735,259.16,259.04,4.42373535]
[1732266236790,2.49999735,259.16,259.04,4.42373535]
[1732266237096,4.99999735,259.16,259.04,20.57873535]
[1732266237414,4.99999735,259.16,259.05,3.845]
[1732266237583,4.99999735,259.16,259.06,0.57876005]
[1732266237784,4.99999735,259.16,259.08,3.845]
[1732266237979,4.99999735,259.16,259.1,23.845]
[1732266238705,4.99999735,259.16,259.08,20.0]
[1732266238905,4.99999735,259.16,259.1,20.0]
[1732266239583,2.49999735,259.16,259.08,20.0]
[1732266239800,4.99999735,259.16,259.1,20.0]
[1732266240304,2.49999735,259.16,259.1,20.0]
[1732266240483,2.49999735,259.14,259.06,20.0]
[1732266240677,2.49999735,259.14,259.07,23.776884]
[1732266240896,2.49999735,259.14,259.08,20.0]
[1732266245596,2.49999735,259.16,259.1,20.0]
[1732266246096,4.99999735,259.16,259.1,20.0]
[1732266246506,2.49999735,259.14,259.04,20.57876716]
[1732266246703,2.49999735,259.14,259.05,23.776884]
[1732266247108,2.49999735,259.14,259.07,23.776884]
[1732266247302,2.49999735,259.14,259.08,20.0]
[1732266247489,2.34609735,259.14,259.08,20.0]
[1732266248287,2.34609601,259.14,259.08,20.0]
[1732266248914,2.19219601,259.11,259.08,20.0]
[1732266249211,2.19219601,259.11,259.03,7.40809462]
[1732266249212,2.1921935,259.11,259.03,7.40809462]
[1732266249513,2.1921935,259.03,258.95,0.57888225]
[1732266249726,2.1921935,259.05,258.95,7.87744037]
[1732266249892,2.1921935,259.05,258.95,0.57888225]
[1732266250421,2.5,259.08,258.95,0.57888225]
[1732266250422,2.1921935,259.07,258.95,0.57888225]
[1732266251110,2.1921935,259.07,258.95,20.57888225]
[1732266251812,2.1921935,259.07,258.95,20.88668875]
[1732266252019,2.5,259.08,258.97,20.0]
[1732266252328,2.5,259.08,258.99,23.776884]
[1732266252527,2.1921935,259.07,259.0,20.0]
[1732266252697,2.1921935,259.07,259.02,20.0]
[1732266253592,2.1921935,259.07,259.01,23.776884]
[1732266253994,2.1921935,259.07,259.02,20.0]
[1732266254198,2.1921935,259.09,259.02,20.0]
[1732266255832,2.1921935,259.09,259.02,20.5789361]
[1732266256825,2.1921935,259.11,259.04,20.0]
[1732266257126,2.1921935,259.11,259.04,20.57888556]
[1732266260299,24.1742935,259.13,259.04,20.57888556]
[1732266260513,17.7930935,259.13,259.06,20.0]
[1732266261321,2.1921935,259.11,259.06,20.0]
[1732266261641,17.7930935,259.13,259.06,20.0]
[1732266261930,2.1921935,259.11,259.06,20.0]
[1732266263513,17.7930935,259.13,259.06,20.0]
[1732266264708,2.1921935,259.11,259.06,20.0]
[1732266265326,17.7930935,259.13,259.06,20.0]
[1732266266325,2.1921935,259.11,259.06,20.0]
[1732266273245,2.1921935,259.11,259.02,20.0]
[1732266273434,2.1921935,259.09,259.04,20.0]
[1732266273626,2.1921935,259.06,259.01,7.46041403]
[1732266273821,2.1921935,259.03,258.96,0.57893558]
[1732266274739,2.1921935,259.03,258.95,4.42403809]
[1732266275236,2.1921935,259.03,258.96,23.776884]
[1732266275443,2.1687935,259.03,258.96,23.776884]
[1732266275639,2.1687935,259.03,258.97,0.57903841]
[1732266276238,2.1687935,259.03,258.97,20.0]
[1732266277151,2.1687935,259.05,258.97,20.0]
[1732266277628,2.1687935,259.03,258.98,3.845]
[1732266278236,2.1687935,259.06,258.98,3.845]
[1732266278435,2.1687935,259.04,258.98,20.57904821]
[1732266279159,2.1687935,259.04,258.98,0.57904821]
[1732266280224,2.1687935,259.04,258.98,4.42404821]
[1732266280746,2.1687935,259.04,258.98,24.42404821]
[1732266281246,2.1687935,259.06,258.98,0.57904821]
[1732266281447,2.1687935,259.04,258.98,0.57904821]
[1732266282547,2.16879135,259.07,259.0,23.845]
[1732266282850,2.16879135,259.07,259.01,0.57897454]
[1732266283729,2.16879135,259.07,259.01,4.42397454]
[1732266283928,2.16879135,259.07,259.01,0.57897454]
[1732266284533,2.16879135,259.09,259.02,23.776884]
[1732266284854,1e-08,259.09,259.03,20.57891984]
[1732266287938,13.10089999,259.13,259.05,20.0]
[1732266288947,13.10089999,259.13,259.05,23.845]
[1732266289145,13.10089999,259.13,259.05,20.0]
[1732266289447,2.5,259.17,259.09,20.0]
[1732266289633,2.5,259.17,259.03,7.22002707]
[1732266289634,2.5,259.05,258.96,11.96462219]
[1732266289953,2.5,259.04,258.94,0.57906795]
[1732266290161,2.5,259.08,258.94,0.57906795]
[1732266290337,6.9,259.08,258.94,0.57906795]
[1732266290534,6.9,259.08,258.78,11.96462219]
[1732266290535,2.5,258.92,258.78,11.96462219]
[1732266290752,2.5,258.88,258.77,11.96462219]
[1732266290963,2.5,258.89,258.76,11.96462219]
[1732266291137,2.5,258.88,258.75,12.54398635]
[1732266291337,2.5,258.86,258.75,8.07524908]
[1732266292058,2.5,258.83,258.75,7.49588492]
[1732266292229,2.5,258.83,258.7,13.07149796]
[1732266292633,2.5,258.81,258.7,9.22649796]
[1732266292832,2.5,258.83,258.7,13.43601082]
[1732266293052,2.5,258.81,258.7,13.43601082]
[1732266293632,2.5,258.85,258.74,2.49999999]
[1732266293830,4.4,258.87,258.72,2.49999999]
[1732266294053,2.5,258.89,258.74,2.49999999]
[1732266294643,2.5,258.87,258.74,2.49999999]
[1732266295056,2.5,258.87,258.77,3.845]
[1732266295255,2.5,258.87,258.76,20.0]
[1732266295256,2.5,258.87,258.79,20.0]
[1732266295555,2.5,258.87,258.81,20.0]
[1732266296154,2.5,258.89,258.83,20.0]
[1732266296746,2.5,258.89,258.8,23.776884]
[1732266297161,2.5,258.87,258.83,20.0]
[1732266297448,2.5,258.89,258.81,20.0]
[1732266297639,2.5,258.89,258.83,20.0]
[1732266298245,2.5,258.89,258.81,20.0]
[1732266298639,2.5,258.89,258.83,20.0]
[1732266299041,2.5,258.89,258.81,20.0]
[1732266299254,2.5,258.89,258.82,23.776884]
[1732266299763,2.5,258.89,258.83,20.0]
[1732266300342,2.5,258.88,258.81,20.0]
[1732266300543,2.5,258.88,258.69,23.845]
[1732266300875,2.5,258.88,258.73,3.845]
[1732266301047,2.5,258.88,258.75,23.845]
[1732266301455,2.5,258.85,258.76,27.621884]
[1732266301681,2.5,258.85,258.78,23.776884]
[1732266301962,2.5,258.87,258.8,23.776884]
[1732266302159,2.5,258.87,258.81,20.0]
[1732266303347,2.5,258.87,258.83,20.0]
[1732266303553,2.5,258.87,258.85,20.0]
[1732266304164,2.5,258.87,258.73,3.845]
[1732266304375,2.5,258.87,258.75,3.845]
[1732266304749,2.5,258.87,258.77,3.845]
[1732266305563,2.5,258.87,258.79,20.0]
[1732266305750,2.5,258.85,258.81,20.0]
[1732266306078,2.5,258.87,258.83,20.0]
[1732266306749,2.5,258.89,258.83,20.0]
[1732266306955,2.5,258.86,258.83,20.0]
[1732266307172,2.5,258.87,258.83,20.0]
[1732266308060,2.5,258.89,258.83,20.0]
[1732266308249,2.5,258.86,258.83,20.0]
[1732266308955,16.5441,258.92,258.74,23.845]
[1732266308956,2.5,258.85,258.74,23.845]
[1732266309270,2.5,258.85,258.78,20.0]
[1732266309454,2.5,258.89,258.79,23.776884]
[1732266309766,2.5,258.88,258.8,20.0]
[1732266309969,2.4746,258.83,258.8,20.0]
[1732266310144,2.46805142,258.83,258.8,20.0]
[1732266310350,2.46805142,258.83,258.74,7.15699365]
[1732266310573,2.46805142,258.83,258.68,0.57948083]
[1732266311068,2.46805142,258.8,258.68,0.57948083]
[1732266312445,2.46805142,258.8,258.7,3.845]
[1732266312665,2.46805142,258.8,258.72,3.845]
[1732266312966,2.46805142,258.8,258.72,23.845]
[1732266313168,2.46805142,258.8,258.74,20.0]
[1732266313357,2.46805142,258.8,258.75,23.776884]
[1732266313557,2.46805142,258.8,258.76,20.0]
[1732266314866,2.46805142,258.8,258.77,3.845]
[1732266315769,2.46805142,258.82,258.77,3.845]
[1732266318960,2.43461595,258.82,258.77,3.845]
[1732266319277,4.4,258.88,258.76,27.39182338]
[1732266319278,6.83461595,258.88,258.81,20.0]
[1732266319579,2.43461595,258.8,258.79,20.0]
[1732266319770,2.43461595,258.82,258.79,20.0]
[1732266319970,2.43461595,258.82,258.77,20.0]
[1732266320173,2.43461595,258.85,258.78,3.845]
[1732266320355,2.43461595,258.84,258.72,3.845]
[1732266320555,2.43461595,258.84,258.74,23.845]
[1732266320868,2.43461595,258.82,258.76,20.0]
[1732266321177,2.43461595,258.82,258.78,23.851]
[1732266323085,2.43461595,258.82,258.72,3.851]
[1732266323287,2.43461595,258.82,258.72,23.851]
[1732266323457,2.43461595,258.82,258.74,3.851]
[1732266323660,2.43461595,258.8,258.74,23.851]
[1732266323952,4.4,258.87,258.76,23.851]
[1732266323953,2.43461595,258.82,258.76,23.851]
[1732266324158,2.43461595,258.82,258.76,3.851]
[1732266324978,2.43461595,258.82,258.73,3.851]
[1732266325174,2.43461595,258.82,258.77,3.851]
[1732266326064,2.43461595,258.82,258.78,3.851]
[1732266327176,2.43461595,258.82,258.74,3.851]
[1732266327386,2.43461595,258.82,258.76,23.851]
[1732266327581,2.43461595,258.82,258.76,3.851]
[1732266328463,2.43461595,258.82,258.76,23.851]
[1732266328684,2.43461595,258.82,258.76,3.851]
[1732266328890,2.43461595,258.8,258.75,3.851]
[1732266329479,2.43461595,258.8,258.76,3.851]
[1732266330858,2.43461595,258.78,258.75,20.0]
[1732266331480,2.43461595,258.78,258.73,23.776884]
[1732266332001,2.43461595,258.76,258.75,23.776884]
[1732266333281,2.43461595,258.76,258.75,43.776884]
[1732266334081,15.4099,258.79,258.76,23.851]
[1732266334380,15.4099,258.79,258.77,3.851]
[1732266337062,16.388,258.85,258.77,3.851]
[1732266337286,16.388,258.85,258.81,20.0]
[1732266339374,16.388,258.85,258.82,20.0]
[1732266339885,16.388,258.85,258.7,23.851]
[1732266340092,16.388,258.85,258.74,20.0]
[1732266340585,16.388,258.85,258.72,3.851]
[1732266340586,16.388,258.85,258.76,20.0]
[1732266340792,16.388,258.85,258.78,20.0]
[1732266341591,16.388,258.85,258.8,20.0]
[1732266341774,16.388,258.85,258.79,23.776884]
[1732266341972,16.388,258.85,258.8,20.0]
[1732266346570,16.388,258.85,258.79,20.0]
[1732266346768,16.388,258.85,258.76,23.776884]
[1732266347088,16.388,258.85,258.79,20.0]
[1732266349906,16.388,258.85,258.8,3.851]
[1732266350600,16.388,258.85,258.79,20.0]
[1732266351179,16.388,258.85,258.76,23.851]
[1732266351585,16.388,258.85,258.76,3.851]
[1732266351771,16.388,258.85,258.76,11.32946365]
[1732266351974,16.388,258.85,258.77,3.851]
[1732266352174,16.388,258.85,258.75,20.0]
[1732266352385,16.388,258.85,258.75,23.851]
[1732266354216,16.388,258.85,258.75,31.14004252]
[1732266356700,16.388,258.85,258.75,27.28904252]
[1732266358800,4.4,258.84,258.75,27.28904252]
[1732266359897,4.4,258.84,258.76,3.851]
[1732266360793,6.091,258.83,258.75,27.28904252]
[1732266362398,9.89694552,258.85,258.78,23.776884]
[1732266362705,8.49694552,258.85,258.79,20.0]
[1732266363496,8.49694552,258.85,258.79,23.851]
[1732266363905,8.49694552,258.85,258.79,20.0]
[1732266364298,8.49694552,258.85,258.8,3.851]
[1732266365181,0.5,258.95,258.79,20.0]
[1732266365381,0.5,258.94,258.82,27.627884]
[1732266365602,16.0102,258.93,258.83,20.0]
[1732266368797,16.0102,258.93,258.83,27.49286536]
[1732266374813,16.0102,258.93,258.84,3.851]
[1732266375205,16.0102,258.93,258.83,27.49286536]
[1732266375206,16.0102,258.93,258.87,3.851]
[1732266377489,16.0102,258.93,258.86,20.0]
[1732266378398,16.0102,258.93,258.86,27.26789023]
[1732266382219,6.0941,258.97,258.86,27.26789023]
[1732266383418,0.5,258.98,258.86,27.26789023]
[1732266383601,16.4041,259.07,258.9,20.0]
[1732266383803,16.4041,259.07,258.94,20.0]
[1732266384112,16.4041,259.07,258.99,23.776884]
[1732266384316,16.4041,259.07,258.95,15.87948099]
[1732266384317,16.4041,259.07,259.02,20.0]
[1732266384619,16.1102,259.13,259.04,20.0]
[1732266384816,0.5,259.12,259.06,20.0]
[1732266385019,0.5,259.12,259.07,5.19741601]
[1732266385601,16.1102,259.13,259.08,20.0]
[1732266386624,16.6066,259.19,259.11,20.0]
[1732266386828,16.6066,259.19,259.12,5.19741601]
[1732266387021,16.6066,259.19,259.13,20.0]
[1732266387526,16.6066,259.19,259.13,23.851]
[1732266387824,16.6066,259.19,259.09,20.0]
[1732266388900,0.5,259.18,259.02,11.91143807]
[1732266389096,0.5,259.17,259.02,11.91143807]
[1732266389317,0.5,259.17,259.03,5.19741601]
[1732266389521,0.5,259.17,259.03,15.76243807]
[1732266390309,10.16223837,259.16,259.03,11.91143807]
[1732266390505,16.4862,259.15,259.03,11.91143807]
[1732266390834,9.66223837,259.14,259.03,5.19741601]
[1732266391043,9.66223837,259.1,258.96,6.71402206]
[1732266391209,9.66223837,259.08,258.96,11.91143807]
[1732266391529,15.696,259.07,258.96,11.91143807]
[1732266391825,0.5,259.06,258.96,11.91143807]
[1732266392331,0.5,259.06,258.96,15.76243807]
[1732266392507,15.78353837,259.04,258.82,15.976]
[1732266392708,0.5,259.03,258.82,20.66786045]
[1732266392918,0.5,259.03,258.83,4.69186045]
[1732266393234,23.776884,259.01,258.83,4.69186045]
[1732266393729,23.776884,259.01,258.84,23.851]
[1732266393914,23.776884,259.01,258.86,20.0]
[1732266394312,23.776884,259.01,258.86,24.69186045]
[1732266394519,23.776884,259.01,258.86,4.69186045]
[1732266394923,23.776884,259.01,258.87,3.851]
[1732266395627,23.776884,259.01,258.87,23.851]
[1732266396133,0.5,259.02,258.87,23.851]
[1732266396424,0.5,259.02,258.89,20.0]
[1732266396629,6.1213,259.04,258.89,23.851]
[1732266396630,0.5,259.01,258.89,23.851]
[1732266396839,0.5,259.03,258.91,20.0]
[1732266397010,0.5,259.03,258.92,4.69186045]
[1732266397638,0.5,259.03,258.93,23.851]
[1732266397810,0.5,259.03,258.93,28.54286045]
[1732266399927,0.5,259.03,258.95,20.0]
[1732266400128,6.1213,259.04,258.95,20.0]
[1732266400423,0.5,259.06,258.97,20.0]
[1732266401025,0.5,259.06,258.99,20.0]
[1732266401330,15.0578,259.14,259.0,23.776884]
[1732266401520,0.5,259.13,259.01,20.0]
[1732266402111,0.5,259.13,259.03,20.0]
[1732266402735,15.0578,259.14,259.03,24.69186045]
[1732266403029,0.5,259.2,259.07,20.0]
[1732266403224,0.5,259.19,259.07,24.93741601]
[1732266403824,0.5,259.19,259.08,4.93741601]
[1732266404437,0.5,259.23,259.08,4.93741601]
[1732266406234,0.5,259.23,259.1,20.0]
[1732266406608,0.5,259.23,259.1,4.93741601]
[1732266407420,0.5,259.23,259.12,20.0]
[1732266409332,16.2208,259.24,259.14,20.0]
[1732266410521,16.2208,259.24,259.1,23.776884]
[1732266410719,16.2208,259.24,259.09,20.0]
[1732266411528,16.2208,259.24,259.08,20.0]
[1732266411757,16.2208,259.24,259.05,4.71801212]
[1732266411758,0.5,259.23,259.05,4.71801212]
[1732266412044,0.5,259.23,259.07,20.0]
[1732266412242,0.5,259.23,259.07,24.71801212]
[1732266412943,0.5,259.22,259.07,24.71801212]
[1732266413247,0.5,259.22,259.08,4.71801212]
[1732266413417,0.5,259.22,259.12,20.0]
[1732266414624,0.5,259.22,259.1,20.0]
[1732266414825,0.5,259.22,259.11,3.851]
[1732266415949,0.5,259.21,259.1,3.851]
[1732266417853,0.5,259.2,259.1,3.851]
[1732266419049,0.5,259.19,259.08,4.71801212]
[1732266420834,0.5,259.19,259.09,23.851]
[1732266421945,0.5,259.23,259.09,23.851]
[1732266423632,0.5,259.23,259.09,3.851]
[1732266423848,15.0843243,259.22,259.06,3.851]
[1732266424052,15.0843243,259.2,259.03,6.06402206]
[1732266424234,15.7357,259.17,259.03,6.06402206]
[1732266424434,0.5,259.16,259.03,6.06402206]
[1732266424850,0.5,259.16,259.04,3.851]
[1732266425240,0.5,259.15,259.02,4.71801212]
[1732266425447,0.5,259.15,258.96,10.03206498]
[1732266425758,20.5843243,259.14,258.96,10.78203418]
[1732266425957,17.5843243,259.12,258.96,10.78203418]
[1732266426273,0.5,259.11,258.96,10.78203418]
[1732266426760,3.0,259.11,258.96,10.78203418]
[1732266427148,21.2984,259.1,258.96,10.78203418]
[1732266427739,21.2984,259.1,258.96,4.71801212]
[1732266430946,0.5,259.09,258.96,4.71801212]
[1732266431244,0.5,259.08,258.96,4.71801212]
[1732266434956,0.5,259.08,258.97,20.0]